Cogmind - Beta 11.1 @@@ ROGUE MODE // 2022.05.18 @ 22:27:10 Player: the cat Result: Destroyed by B-86 Titan with Hardcell Cannon Performance ------------- Evolutions (6) 3000 Regions Visited (20) 4000 Robots Destroyed (313) 1565 Value Destroyed (13468) 13468 Prototype IDs (55) 1100 Alien Tech Used (1) 200 Bonus (6194) 6194 TOTAL SCORE: 29527 Bonus ------- High Alert Combat Kills 4383 Follower Combat Kills 1297 Entered DSFs 500 Network Hubs Disabled 200 Aligned with FarCom 300 Met Zhirov 300 Met R17 at Cetus 500 Friendly Fire -1286 Cogmind --------- Core Integrity 0/1150 Matter 249/300 Energy 340/340 System Corruption 25% Temperature Cool (0) Movement Walking (260) Ox2 Location -4/Factory Parts ------- > --- POWER (1) -------- Heavy Antimatter Reactor > --- PROPULSION (6) --- Flexi-carbon Leg Flexi-carbon Leg > --- UTILITY (8) ------ Advanced Coolant Injector Huge Storage Unit Enhanced Optical Array Advanced Targeting Computer Improved Weapon Cycler Transmission Jammer > --- WEAPON (4) ------- (None) > --- INVENTORY (25) --- Light Antimatter Reactor Matter Compressor (58) Advanced Sensor Array Active Sensor Suite Precision Matter Filter Kinecellerator Improved Weapon Cycler Graphene Brace Long-range Tractor Beam Transdimensional Reconstructor Field Laser Plasma Rifle Powered Hammer Peak State ------------ > --- POWER ------------ Antimatter Reactor > --- PROPULSION ------- Heavy Treads Heavy Treads Centrium Heavy Treads > --- UTILITY ---------- Huge Storage Unit Enhanced Optical Array Advanced Signal Interpreter Core Analyzer Improved Kinecellerator Centrium Medium Armor Plating Advanced Shield Generator Advanced Hacking Suite > --- WEAPON ----------- Coil Gun KE Penetrator Advanced KE Penetrator Advanced KE Penetrator > --- INVENTORY -------- Heavy Antimatter Reactor Heavy Treads Heavy Treads Improved Coolant Injector Matter Compressor Advanced Sensor Array Long-range Terrain Scanner Precision Matter Filter Improved Kinecellerator Improved Weapon Cycler Improved Weapon Cycler Transmission Jammer Experimental Weapon Shielding Improved Medium Armor Plating Layered Heavy Armor Plating Graphene Brace Long-range Tractor Beam Transdimensional Reconstructor Improved EM Pulse Cannon Railgun Long-range Missile Launcher Powered Hammer [Rating: 133] Favorites ----------- Power Improved Deuterium Engine Engine Improved Deuterium Engine Power Core Neutrino Core Reactor Quantum Reactor Propulsion Armored Treads Treads Armored Treads Leg Aluminum Leg Wheel Armored Wheel Utility Core Analyzer Device Advanced Sensor Array Storage High-capacity Storage Unit Processor Core Analyzer Hackware Improved Hacking Suite Protection Improved Medium Armor Plating Weapon Gauss Rifle Energy Gun Beam Rifle Energy Cannon Heavy Particle Cannon Ballistic Gun Gauss Rifle Launcher Long-range Missile Launcher Impact Weapon Powered Hammer Piercing Weapon Plasma Lance Build | -11 -10 -10 -10 -9 -8 -7 -7 -6 -6 -6 -6 -6 -6 -6 -5 -5 -5 -5 -4 -4 ------- Run | Scr Mat Min Exi Min Mat Fac DSF Fac Was Fac Ext Cet Arc Hub Fac Upp Upp Zhi Pro Fac Slots Evolved 12 | . . . . . 4 2 . 2 . . . . . . 2 . . . . 2 Power . | . . . . . . . . . . . . . . . . . . . . . Propulsion 4 | . . . . . 1 1 . . . . . . . . 2 . . . . . Utility 6 | . . . . . 2 . . 2 . . . . . . . . . . . 2 Weapon 2 | . . . . . 1 1 . . . . . . . . . . . . . . Parts Attached 391 | . 4 3 12 5 36 2 21 6 10 14 11 20 8 25 48 14 7 12 3 130 Power 17 | . 1 . 1 1 2 . . 2 . . . 1 . 1 . . 1 2 . 5 Engine 6 | . 1 . . 1 2 . . 2 . . . . . . . . . . . . Core 5 | . . . 1 . . . . . . . . 1 . . . . 1 1 . 1 Reactor 6 | . . . . . . . . . . . . . . 1 . . . 1 . 4 Propulsion 71 | . . 2 5 . 13 1 6 1 . 3 1 2 2 3 6 1 1 1 . 23 Treads 62 | . . . 3 . 12 1 6 1 . 3 1 2 2 3 6 1 1 1 . 19 Leg 4 | . . . . . . . . . . . . . . . . . . . . 4 Wheel 5 | . . 2 2 . 1 . . . . . . . . . . . . . . . Hover . | . . . . . . . . . . . . . . . . . . . . . Flight . | . . . . . . . . . . . . . . . . . . . . . Utility 164 | . 2 . 1 3 10 . 7 2 8 5 1 8 5 10 27 7 2 4 1 61 Device 98 | . . . 1 3 3 . 3 1 2 2 . 3 2 5 13 7 1 3 1 48 Storage 4 | . 1 . . . 2 . . . . . . . . . 1 . . . . . Processor 8 | . . . . . 1 . 1 . . 1 . . . 1 3 . . . . 1 Hackware 7 | . . . . . 1 . . 1 . 2 . . . . 2 . . . . 1 Protection 47 | . 1 . . . 3 . 3 . 6 . 1 5 3 4 8 . 1 1 . 11 Artifact . | . . . . . . . . . . . . . . . . . . . . . Weapon 139 | . 1 1 5 1 11 1 8 1 2 6 9 9 1 11 15 6 3 5 2 41 Energy Gun 8 | . . . . 1 2 . . . . . . 1 . . 1 . . . . 3 Energy Cannon 11 | . . . . . 3 . . . . . 1 . . 1 2 . . . . 4 Ballistic Gun 87 | . 1 1 4 . 6 1 5 1 2 3 5 7 1 8 9 3 2 4 1 23 Ballistic Cannon . | . . . . . . . . . . . . . . . . . . . . . Launcher 10 | . . . 1 . . . . . . . . 1 . 1 1 1 1 . 1 3 Special Weapon . | . . . . . . . . . . . . . . . . . . . . . Impact Weapon 22 | . . . . . . . 3 . . 3 3 . . 1 2 2 . 1 . 7 Slashing Weapon . | . . . . . . . . . . . . . . . . . . . . . Piercing Weapon 1 | . . . . . . . . . . . . . . . . . . . . 1 Special Melee Weapon . | . . . . . . . . . . . . . . . . . . . . . Unidentified Prototypes 16 | . . . . 1 3 . . . . . . 4 . . 1 . . 4 . 3 Corrupted Parts 6 | . . . . . . . . . . . . . 1 2 . . . . . 3 System Corruption 29 | . . . . . . . . . . . . . 7 17 . . . . . 5 Parts Lost 77 | . 1 2 4 2 7 . 2 . . . . 2 . 7 4 1 3 . . 42 Power 9 | . 1 . 1 1 . . . . . . . 1 . 1 . . 1 . . 3 Propulsion 22 | . . . 1 . 3 . . . . . . . . 2 . . . . . 16 Utility 19 | . . 1 . . 1 . 2 . . . . . . 3 1 . 1 . . 10 Weapon 27 | . . 1 2 1 3 . . . . . . 1 . 1 3 1 1 . . 13 Highest Loss Streak 19 | . 1 2 4 2 2 . 2 . . . . 2 . 3 2 1 2 . . 19 To Critical Strikes 3 | . . . 3 . . . . . . . . . . . . . . . . . Average Slot Usage (%) 92 | . 97 95 91 100 96 100 98 92 98 100 100 92 92 89 88 88 87 63 82 84 Engine 4 | . 14 14 11 3 9 7 7 6 6 6 6 4 . . . . . . . . Core 1 | . . . 2 10 . . . . . . . 1 6 1 . . 4 5 5 . Reactor 1 | . . . . . . . . . . . . . . 4 5 5 . . . 4 Treads 21 | . . . 5 14 22 30 29 26 26 26 26 19 19 19 23 23 23 21 17 18 Wheel 2 | . . 22 22 14 4 . . . . . . . . . . . . . . . Device 7 | . . . 6 14 16 15 7 6 5 5 . 5 6 10 5 5 5 3 5 9 Storage 6 | . 14 14 14 14 9 7 7 6 6 6 6 6 6 6 5 5 5 5 5 5 Processor 9 | . . . . . . . 6 6 6 8 13 13 13 8 12 17 17 17 17 15 Hackware 2 | . . . . . . . . 5 5 4 6 1 . . 3 . . . . 2 Protection 7 | . 11 10 . . 8 7 6 6 12 13 13 11 12 10 4 5 4 5 5 5 Energy Gun 1 | . 2 . . 3 5 . . . . . . . . . . . . . . . Energy Cannon 1 | . . . . . 6 . . . . . . . . . . . . . . . Ballistic Gun 21 | . 25 27 27 24 13 30 27 22 26 25 25 25 26 24 22 22 22 1 22 18 Naked Turns . | . . . . . . . . . . . . . . . . . . . . . Heaviest Build 141 | 11 30 30 30 31 75 71 71 73 110 87 85 85 85 96 137 141 136 126 126 140 Greatest Support 220 | 20 20 24 40 12 60 80 80 88 88 90 90 160 160 140 210 208 208 220 220 220 Greatest Overweight (x) 5 | . 1 1 2 2 5 . 1 . 1 . . . . . . . . . . 5 Average Overweight (x) . | . . 1 1 2 1 . . . . . . . . . . . . . . . Largest Inventory Capacity 25 | . 15 15 15 15 20 20 20 20 20 20 20 20 20 20 25 25 25 25 25 25 Average Capacity 21 | . 14 15 15 15 18 20 20 20 20 20 20 20 20 20 23 25 25 25 25 25 Most Carried 25 | . 15 15 15 10 20 20 20 20 20 20 20 20 20 20 25 25 25 25 25 25 Average Carried 20 | . 9 12 13 8 17 19 19 19 19 19 19 19 19 19 23 24 24 24 25 22 Final Capacity 25 | 8 15 15 15 15 20 20 20 20 20 20 20 20 20 20 25 25 25 25 25 25 Final Carried 25 | 6 15 12 8 10 20 20 20 20 20 20 20 20 20 17 25 25 23 25 25 15 Class Distribution -------------------- 25% | Scavenger-Skirmisher 23% | Scavenger-Tank 14% | Tank 14% | Mutant 5% | Scavenger-Mutant 5% | Commander-Tank 4% | Gunner 4% | Scavenger-Gunner Dominant Class ---------------- Mutant | -10/Materials Mutant | -10/Mines Mutant | -10/Exiles Mutant | -9/Mines Scavenger-Tank | -8/Materials Scavenger-Tank | -7/Factory Gunner | -7/DSF Mutant | -6/Factory Tank | -6/Waste Tank | -6/Factory Commander-Tank | -6/Extension Scavenger-Tank | -6/Cetus Scavenger-Tank | -6/Archives Scavenger-Tank | -6/Hub_04(d) Scavenger-Skirmisher | -5/Factory Scavenger-Skirmisher | -5/Upper Caves Scavenger-Skirmisher | -5/Upper Caves Mutant | -5/Zhirov Scavenger-Skirmisher | -4/Proximity Caves Scavenger-Skirmisher | -4/Factory Resources | -11 -10 -10 -10 -9 -8 -7 -7 -6 -6 -6 -6 -6 -6 -6 -5 -5 -5 -5 -4 -4 ----------- Run | Scr Mat Min Exi Min Mat Fac DSF Fac Was Fac Ext Cet Arc Hub Fac Upp Upp Zhi Pro Fac Matter Collected 13005 | 200 141 55 200 116 1109 . 603 302 484 276 348 806 468 1133 1510 394 463 70 38 4289 Remotely 3703 | . . . . . . . . . . 110 . 473 191 829 198 169 . . . 1733 Salvage Created 18065 | . 189 123 . 128 2165 . 730 327 1089 488 835 577 370 1173 1592 571 762 100 26 6820 Parts 750 | . 13 10 . 6 104 . 38 16 19 18 34 26 17 58 87 20 31 1 3 249 Haulers Intercepted 17 | . 1 . . . 6 . . . . 2 3 . . . 2 . . . . 3 Recyclers Shooed 5 | . . . . . 1 . . . . . . . . . 1 . . . . 3 Parts Field Recycled . | . . . . . . . . . . . . . . . . . . . . . Retrieved Matter . | . . . . . . . . . . . . . . . . . . . . . Parts Self-Destructed 41 | . . . . . . . . . . . . . . . . 8 31 . 2 . Prevented . | . . . . . . . . . . . . . . . . . . . . . Kills | -11 -10 -10 -10 -9 -8 -7 -7 -6 -6 -6 -6 -6 -6 -6 -5 -5 -5 -5 -4 -4 ------- Run | Scr Mat Min Exi Min Mat Fac DSF Fac Was Fac Ext Cet Arc Hub Fac Upp Upp Zhi Pro Fac Combat Hostiles Destroyed 264 | . 5 5 4 4 35 . 13 5 . 4 8 13 4 16 31 8 14 . 4 91 Melee 1 | . . . . . 1 . . . . . . . . . . . . . . . Guns 199 | . 5 5 2 4 22 . 12 5 . 4 8 7 4 16 21 8 11 . . 65 Cannons 15 | . . . . . 11 . . . . . . . . . 1 . . . . 3 AOE 46 | . . . 2 . . . . . . . . 6 . . 9 . 3 . 4 22 Classes Destroyed 20 | . 3 . 1 1 7 . 1 1 1 . . . 1 1 . 1 . . . 2 Worker 16 | . . . . . 2 . . . . . . . . 2 2 . . . . 10 Builder 13 | . . . . . 3 . . 1 . 1 1 . . 3 . . . . . 4 Tunneler 1 | . . . . . . . . . . . . . . . . . . . . 1 Hauler 17 | . 1 . . . 6 . . . . 2 3 . . . 2 . . . . 3 Recycler 12 | . . . . . 3 . . . . 1 . . . 1 1 . . . . 6 Operator 2 | . . . . . . . . . . . . . 1 . 1 . . . . . Watcher 7 | . . . . . 2 . . . . . . . . . 3 . . . . 2 Swarmer 59 | . 3 3 . 2 10 . . . . 2 . 4 . . 17 . 2 . 4 12 Grunt 111 | . 2 2 . 1 14 . 10 4 . 1 3 3 . 9 5 4 8 . . 45 Brawler 9 | . . . . . 1 . 1 . . . . . . . . . 1 . . 6 Duelist 8 | . . . . 1 1 . 1 . . . . . . . . . 1 . . 4 Protector 1 | . . . . . . . . . . . . . . . . . . . . 1 Sentry 30 | . . . . . 9 . . . . 1 4 . 4 2 5 . 2 . . 3 Specialist 6 | . . . . . . . . . . . . . . 2 . . . . . 4 Hunter 12 | . . . . . 1 . . . . . . . . 2 . . . . . 9 Programmer 11 | . . . . . . . . 1 . . . . . . 4 . . . . 6 Heavy 3 | . . . . . . . 1 . . . . . . 1 . . . . . 1 Cetus Guard 6 | . . . . . . . . . . . . 6 . . . . . . . . Samaritan 1 | . . . . . . . . . . . . . . . . 1 . . . . Assembled 4 | . . . 4 . . . . . . . . . . . . . . . . . Thug 5 | . . . . . . . . . . . 1 . . . . 4 . . . . Savage 1 | . . . . . . . . . . . 1 . . . . . . . . . Martyr 3 | . . . . . . . . . 3 . . . . . . . . . . . Best Kill Streak 17 | . 2 3 4 2 6 . 3 6 . 3 2 7 4 9 10 4 7 . 4 17 Combat Bots Only 14 | . 2 3 4 2 6 . 3 5 . 2 2 7 4 5 10 4 7 . 4 14 Max Kills in Single Turn 6 | . 1 1 1 1 1 . 2 2 1 3 1 4 1 5 3 2 2 . 2 6 Gunslinging 2 | . . . . . . . 1 1 . 1 . . . . 1 1 . . . 2 Exploded 4 | . . . 1 . . . . . . . . 4 . . 3 . 2 . 2 4 Melee 1 | . . . . . 1 . . . . . . . . . . . . . . . Uniques/NPCs Destroyed . | . . . . . . . . . . . . . . . . . . . . . Combat | -11 -10 -10 -10 -9 -8 -7 -7 -6 -6 -6 -6 -6 -6 -6 -5 -5 -5 -5 -4 -4 -------- Run | Scr Mat Min Exi Min Mat Fac DSF Fac Was Fac Ext Cet Arc Hub Fac Upp Upp Zhi Pro Fac Damage Taken 24267 | . 237 269 749 235 1899 . 643 269 . 114 511 1882 344 2449 1124 639 1221 . 111 11571 Core 2363 | . 6 41 99 53 176 . 16 22 . . 64 116 . 438 57 16 77 . . 1182 Absorbed by Shields 1121 | . . . . . . . . . . . . . . . . . 115 . . 1006 Reduced by Siege Mode 895 | . . . . . . . . . . . . 64 . 67 . 20 37 . 19 688 Redirected to Shielding 208 | . . . . . . . . . . . . . . . . . . . . 208 Core Remaining (%) 65 | 100 . . . 20 68 . 97 . . . . . . 24 . . . . 85 . Volleys Fired 661 | . 21 15 30 13 120 . 33 11 15 6 19 37 17 43 55 14 21 . 4 187 Largest 4 | . 2 2 2 2 3 . 4 4 4 4 4 4 4 4 4 4 4 . 1 4 Hottest 216 | . 40 40 40 76 181 . 109 109 109 109 111 118 125 160 131 133 126 . 43 216 Shots Fired 2138 | . 43 30 51 26 330 . 104 44 60 24 73 133 68 159 203 54 72 . 4 660 Gun 1983 | . 43 30 47 26 245 . 104 44 60 24 72 128 68 152 197 53 69 . . 621 Cannon 120 | . . . . . 85 . . . . . 1 . . 5 2 . . . . 27 Launcher 35 | . . . 4 . . . . . . . . 5 . 2 4 1 3 . 4 12 Special . | . . . . . . . . . . . . . . . . . . . . . Kinetic 1844 | . 43 30 47 23 122 . 104 44 60 24 72 128 68 152 197 53 69 . . 608 Thermal 220 | . . . . 3 204 . . . . . . . . . . . . . . 13 Explosive 35 | . . . 4 . . . . . . . . 5 . 2 4 1 3 . 4 12 Electromagnetic 39 | . . . . . 4 . . . . . 1 . . 5 2 . . . . 27 Robot Hit Streak 44 | . 5 8 11 11 13 . 12 14 20 5 17 28 9 25 13 15 35 . 38 44 Robot Miss Streak 6 | . 5 3 2 3 5 . 2 3 1 3 4 4 6 3 5 5 2 . . 3 Penetration Max 2 | . . . . . . . 1 . . 1 1 1 . . 1 . . . . 2 Secondary Targets 49 | . . . . 1 2 . 5 1 . 1 2 2 2 5 4 3 5 . . 16 Max Gunslinging Chain 2 | . . . . 1 1 . 1 1 . 1 1 1 1 1 1 1 1 . . 2 Shots Hit Robots 1450 | . 21 17 32 17 210 . 55 30 44 15 53 104 38 115 124 33 58 2 3 479 Core Hits 760 | . 9 8 13 7 77 . 31 14 21 9 34 49 18 51 62 17 29 1 4 306 Critical Kills 27 | . . . . . . . . 1 1 . 2 . 1 3 3 4 . . . 12 Critical Parts Destroyed 46 | . . . . . 1 . 2 . . . 2 . 3 4 9 . 2 . . 23 Critical Strikes 94 | . . . . . 17 . 2 1 2 . 4 1 4 7 13 4 2 . . 37 Burn 17 | . . . . . 16 . . . . . . . . . . . . . . 1 Destroy 75 | . . . . . 1 . 2 1 2 . 2 1 4 7 13 4 2 . . 36 Smash 2 | . . . . . . . . . . . 2 . . . . . . . . . Melee Attacks 51 | . . . . . . . 11 2 . 8 5 . . 2 2 2 . 2 . 17 Impact 51 | . . . . . . . 11 2 . 8 5 . . 2 2 2 . 2 . 17 Slashing . | . . . . . . . . . . . . . . . . . . . . . Piercing . | . . . . . . . . . . . . . . . . . . . . . Sneak Attacks 6 | . . . . . . . . . . 3 3 . . . . . . . . . Combat Hostiles . | . . . . . . . . . . . . . . . . . . . . . Follow-up Attacks . | . . . . . . . . . . . . . . . . . . . . . Damage Inflicted 43852 | . 266 210 611 219 3914 . 1035 662 957 715 1757 3167 911 3204 4666 975 1729 177 545 18132 Guns 32854 | . 266 210 401 219 2575 . 1035 662 957 347 1119 2235 911 2567 3408 975 1279 . . 13688 Cannons 1928 | . . . . . 1315 . . . . . . . . 87 24 . . . . 502 Explosions 7705 | . . . 210 . . . . . . . 196 932 . 550 1204 . 450 . 545 3618 Melee 1120 | . . . . . . . . . . 363 389 . . . . . . 177 . 191 Ramming 245 | . . . . . 24 . . . . 5 53 . . . 30 . . . . 133 Kinetic 31027 | . 266 210 401 190 995 . 1035 662 957 347 1119 2235 911 2567 3408 975 1279 . . 13470 Thermal 5174 | . . . . 29 2844 . . . . . 196 . . 139 567 . . . . 1399 Explosive 5000 | . . . 210 . . . . . . . . 932 . 19 637 . 450 . 545 2207 Electromagnetic 1286 | . . . . . 51 . . . . . . . . 479 24 . . . . 732 Impact 1120 | . . . . . . . . . . 363 389 . . . . . . 177 . 191 Slashing . | . . . . . . . . . . . . . . . . . . . . . Piercing . | . . . . . . . . . . . . . . . . . . . . . Highest Corruption 26 | . 4 4 4 4 . . . . . . . . 7 26 4 4 4 4 4 25 Average Corruption 7 | . 3 4 4 4 . . . . . . . . 7 15 3 4 4 4 4 14 Corruption Purged 3 | . . . . . . . . . . . . . . . 3 . . . . . Corruption Blocked . | . . . . . . . . . . . . . . . . . . . . . Effects 215 | . 6 5 10 12 . . . . . . . . 9 26 13 20 13 6 12 83 Message Errors 45 | . . . 3 7 . . . . . . . . 2 4 4 3 1 2 4 15 Matter Fused 44 | . 3 1 2 2 . . . . . . . . 1 8 1 5 4 . 4 13 Heat Flow Errors 22 | . 1 . 1 1 . . . . . . . . 2 4 1 . . 1 1 10 Energy Discharges 20 | . 1 2 . . . . . . . . . . 1 . 1 4 3 . 1 7 Parts Rejected 5 | . . . 1 . . . . . . . . . . . . . 1 . . 3 Data Loss (minor) 27 | . . 1 1 1 . . . . . . . . . 1 4 5 3 1 1 9 Data Loss (major) 11 | . . . 2 1 . . . . . . . . 1 . 1 . . 1 1 4 Misfires 11 | . 1 . . . . . . . . . . . 1 2 1 1 . . . 5 Alerts 5 | . . 1 . . . . . . . . . . . 1 . 2 . 1 . . Misdirections 2 | . . . . . . . . . . . . . . . . . . . . 2 Weapon Failures 23 | . . . . . . . . . . . . . 1 6 . . 1 . . 15 Overload Shots . | . . . . . . . . . . . . . . . . . . . . . Overflow Damage 649 | . . . . . 17 . . . . 96 128 . . 5 190 . . 88 13 112 Projectiles 17 | . . . . . 17 . . . . . . . . . . . . . . . Explosions 315 | . . . . . . . . . . . 8 . . 5 190 . . . 13 99 Melee 317 | . . . . . . . . . . 96 120 . . . . . . 88 . 13 Knockbacks 3 | . . . . . . . . . . . 1 . . . 1 . . . . 1 Impact 3 | . . . . . . . . . . . 1 . . . 1 . . . . 1 Kinetic . | . . . . . . . . . . . . . . . . . . . . . Secondary . | . . . . . . . . . . . . . . . . . . . . . Self-Inflicted Damage 835 | . . . . . . . . . . . 62 19 . 95 153 . 44 . 6 456 Shots 19 | . . . . . . . . . . . 1 1 . 1 2 . 2 . 1 11 Rammed 19 | . . . . . 7 . . . . 2 4 . . . 2 . . . . 4 Targets Rammed 23 | . . . . . 8 . . . . 2 4 . . . 2 . . . . 7 Kicked . | . . . . . . . . . . . . . . . . . . . . . Crushed 4 | . . . . . 1 . . . . . . . . . . . . . . 3 Highest Temperature 342 | . 108 13 175 238 268 . 290 . . 60 94 283 199 220 246 326 186 92 199 342 Average Temperature 91 | . 25 5 74 79 88 . 158 . . 24 36 122 98 105 56 127 71 52 105 98 Received Heat Transfer 4282 | . 108 114 40 30 657 . 225 45 . 12 120 174 27 600 81 267 308 . . 1474 Effects 11 | . . . . . 5 . . . . . . . . . . 1 . . . 5 Shutdowns 1 | . . . . . . . . . . . . . . . . 1 . . . . Energy Bleed 2 | . . . . . . . . . . . . . . . . . . . . 2 Interference 8 | . . . . . 5 . . . . . . . . . . . . . . 3 Siege Activations 16 | . . . . . . . . . . . . 1 . 1 . 1 2 . 1 10 Total Turns 593 | . . . . . . . . . . . . 48 . 25 . 20 57 . 11 432 Longest Duration 113 | . . . . . . . . . . . . 48 . 25 . 20 31 . 11 113 Robots Corrupted 1 | . . . . . . . . . . . . . . . . . . . . 1 Combat Hostiles 1 | . . . . . . . . . . . . . . . . . . . . 1 Parts Fried 6 | . . . . . . . . . . 1 1 . . 1 . . . . . 3 Impact Corruptions 6 | . . . . . . . . . . 3 1 . . . . . . 1 . 1 Robots Melted 1 | . . . . . 1 . . . . . . . . . . . . . . . Combat Hostiles 1 | . . . . . 1 . . . . . . . . . . . . . . . Parts Melted 28 | . . . . 1 23 . 1 . . . . . . . . . . . . 3 Heat Transferred 8732 | . . . . 74 6549 . . . . . 200 . . 100 300 . . . . 1509 Parts Sabotaged 7 | . . . . . . . . . . . . . . 4 . . . . . 3 Parts Stolen . | . . . . . . . . . . . . . . . . . . . . . Parts Stripped . | . . . . . . . . . . . . . . . . . . . . . Power Chain Reactions 3 | . . . . . . . . . . . . . . 1 . . . . . 2 Missiles Intercepted . | . . . . . . . . . . . . . . . . . . . . . Alert | -11 -10 -10 -10 -9 -8 -7 -7 -6 -6 -6 -6 -6 -6 -6 -5 -5 -5 -5 -4 -4 ------- Run | Scr Mat Min Exi Min Mat Fac DSF Fac Was Fac Ext Cet Arc Hub Fac Upp Upp Zhi Pro Fac Peak Influence 2144 | . 165 115 . 93 737 283 486 382 133 504 648 555 323 514 858 . . . . 2144 Initial 304 | . . . . . . 283 198 254 133 . 207 304 142 112 220 . . . . . Average 471 | . 70 90 . 31 543 283 338 293 84 229 450 409 264 355 533 . . . . 899 Maximum Alert Level 5 | . . . . . 3 1 2 1 . 2 2 2 1 2 3 . . . . 5 Low Security (%) 21 | . 100 100 . 100 4 . 14 . 100 47 . . 20 15 . . . . . 12 Level 1 21 | . . . . . 11 100 52 100 . 23 21 49 79 38 30 . . . . 3 Level 2 43 | . . . . . 84 . 33 . . 29 78 50 . 45 45 . . . . 17 Level 3 7 | . . . . . . . . . . . . . . . 23 . . . . 27 Level 4 5 | . . . . . . . . . . . . . . . . . . . . 30 Level 5 1 | . . . . . . . . . . . . . . . . . . . . 8 High Security . | . . . . . . . . . . . . . . . . . . . . . Max Security . | . . . . . . . . . . . . . . . . . . . . . Sterilizations 1 | . . . . . . . 1 . . . . . . . . . . . . . Squads Dispatched 57 | . 1 . . . 10 . 1 . . 1 3 . . 6 11 . 1 . . 23 Investigation 7 | . . . . . 1 . . . . . 1 . . . 3 . . . . 2 Extermination 6 | . . . . . . . . . . 1 . . . . 2 . . . . 3 Reinforcement 28 | . 1 . . . 3 . 1 . . . 2 . . 5 5 . . . . 11 Assault 9 | . . . . . . . . . . . . . . 1 1 . 1 . . 6 Garrison 7 | . . . . . 6 . . . . . . . . . . . . . . 1 Intercept . | . . . . . . . . . . . . . . . . . . . . . Searches Triggered . | . . . . . . . . . . . . . . . . . . . . . Construction Impeded 6 | . . . . . 1 . . . . . . . . 2 1 . . . . 2 Haulers Reinforced 2 | . . . . . . . . . . . . . . . . . . . . 2 Active Scanning Responses . | . . . . . . . . . . . . . . . . . . . . . Cargo Convoy Interrupts . | . . . . . . . . . . . . . . . . . . . . . Stealth | -11 -10 -10 -10 -9 -8 -7 -7 -6 -6 -6 -6 -6 -6 -6 -5 -5 -5 -5 -4 -4 --------- Run | Scr Mat Min Exi Min Mat Fac DSF Fac Was Fac Ext Cet Arc Hub Fac Upp Upp Zhi Pro Fac Distress Signals 21 | . . . . . 8 . . . . . 2 1 . . . . . . . 10 Communications Jammed 80 | . . . . . . . . . . . . . . . . . . . . 80 Distress Signals 80 | . . . . . . . . . . . . . . . . . . . . 80 Times Spotted 403 | . 9 5 5 6 59 . 14 5 . 18 22 18 14 21 44 7 18 . 4 134 Peak Tracking Total 15 | . 3 3 9 3 8 . 4 4 . 8 6 7 2 5 9 4 7 . 4 15 Tactical Retreats 20 | . 1 . . 1 3 . 2 . . 2 1 . . 1 1 . 1 . . 7 Traps | -11 -10 -10 -10 -9 -8 -7 -7 -6 -6 -6 -6 -6 -6 -6 -5 -5 -5 -5 -4 -4 ------- Run | Scr Mat Min Exi Min Mat Fac DSF Fac Was Fac Ext Cet Arc Hub Fac Upp Upp Zhi Pro Fac Traps Triggered 10 | . 2 . . . 2 . 2 1 . . . . . . . . . . . 3 Indirectly . | . . . . . . . . . . . . . . . . . . . . . Trap Hack Attempts . | . . . . . . . . . . . . . . . . . . . . . Triggered . | . . . . . . . . . . . . . . . . . . . . . Disarmed . | . . . . . . . . . . . . . . . . . . . . . Reprogrammed . | . . . . . . . . . . . . . . . . . . . . . Reused . | . . . . . . . . . . . . . . . . . . . . . Traps Extracted . | . . . . . . . . . . . . . . . . . . . . . Installed . | . . . . . . . . . . . . . . . . . . . . . Triggered . | . . . . . . . . . . . . . . . . . . . . . Exploded 3 | . . . 3 . . . . . . . . . . . . . . . . . Machines | -11 -10 -10 -10 -9 -8 -7 -7 -6 -6 -6 -6 -6 -6 -6 -5 -5 -5 -5 -4 -4 ---------- Run | Scr Mat Min Exi Min Mat Fac DSF Fac Was Fac Ext Cet Arc Hub Fac Upp Upp Zhi Pro Fac Machines Disabled 65 | . . . 6 . 2 . . . . . 2 . 4 9 13 . . . . 29 Max in Single Turn 6 | . . . 2 . 1 . . . . . 1 . 1 4 5 . . . . 6 Garrison Access 3 | . . . . . 1 . . . . . . . . 1 . . . . . 1 Network Hub 1 | . . . . . . . . . . . . . . 1 . . . . . . Energy Cycler 1 | . . . . . . . . . . . 1 . . . . . . . . . Machines Sabotaged . | . . . . . . . . . . . . . . . . . . . . . Garrisons Compromised . | . . . . . . . . . . . . . . . . . . . . . Overloaded Fab Kills . | . . . . . . . . . . . . . . . . . . . . . Hacking | -11 -10 -10 -10 -9 -8 -7 -7 -6 -6 -6 -6 -6 -6 -6 -5 -5 -5 -5 -4 -4 --------- Run | Scr Mat Min Exi Min Mat Fac DSF Fac Was Fac Ext Cet Arc Hub Fac Upp Upp Zhi Pro Fac Machines Accessed 53 | . . . 2 1 10 1 . 1 . 6 6 1 . 3 10 1 . 4 . 7 Terminals 29 | . . . . . 7 1 . 1 . 2 6 1 . 2 4 . . . . 5 Fabricators 5 | . . . . . . . . . . 1 . . . . 3 . . . . 1 Repair Stations . | . . . . . . . . . . . . . . . . . . . . . Recycling Units 5 | . . . . . 1 . . . . 1 . . . . 3 . . . . . Scanalyzers 3 | . . . . . 1 . . . . 2 . . . . . . . . . . Garrison Access 3 | . . . . . 1 . . . . . . . . 1 . . . . . 1 Total Hacks 183 | . . . 2 1 32 1 . 2 . 24 10 3 . 9 52 1 . 17 . 29 Successful 104 | . . . 2 1 16 1 . . . 17 4 . . 4 30 1 . 17 . 11 Failed 79 | . . . . . 16 . . 2 . 7 6 3 . 5 22 . . . . 18 Catastrophic 13 | . . . . . 3 . . . . . 1 1 . 1 1 . . . . 6 Database Lockouts . | . . . . . . . . . . . . . . . . . . . . . Manual 80 | . . . 1 . 16 . . 2 . 8 6 . . 5 25 . . . . 17 Terminals 109 | . . . . . 26 1 . 2 . 5 10 3 . 7 33 . . . . 22 Fabricators 20 | . . . . . . . . . . 6 . . . . 10 . . . . 4 Repair Stations . | . . . . . . . . . . . . . . . . . . . . . Recycling Units 13 | . . . . . 2 . . . . 2 . . . . 9 . . . . . Scanalyzers 13 | . . . . . 2 . . . . 11 . . . . . . . . . . Garrison Access 7 | . . . . . 2 . . . . . . . . 2 . . . . . 3 Terminal Hacks 65 | . . . 2 1 12 1 . . . 3 3 . . 4 14 1 . 17 . 7 Record 6 | . . . 1 . . . . . . . . . . . . . . 5 . . Part Schematic 4 | . . . . . . . . . . . . . . . . . . 4 . . Robot Analysis 6 | . . . . . 1 . . . . . . . . 1 . . . 4 . . Prototype ID Bank 7 | . . . . . 1 . . . . . . . . . 1 . . 4 . 1 Open Door 5 | . . . . 1 . . . . . 1 2 . . . . 1 . . . . Open DSF 1 | . . . . . . 1 . . . . . . . . . . . . . . Branch Access Points 3 | . . . . . 1 . . . . 1 . . . . 1 . . . . . Terminal Index 1 | . . . . . . . . . . . . . . . 1 . . . . . Fabricator Index 1 | . . . . . . . . . . . . . . . 1 . . . . . Scanalyzer Index 1 | . . . . . . . . . . 1 . . . . . . . . . . Alert Level 8 | . . . . . 1 . . . . . 1 . . 1 4 . . . . 1 Unreport Threat 10 | . . . . . 1 . . . . . . . . 2 4 . . . . 3 Locate Traps 2 | . . . . . 1 . . . . . . . . . . . . . . 1 Transport Status 2 | . . . . . 2 . . . . . . . . . . . . . . . Hauler Manifests 2 | . . . . . 2 . . . . . . . . . . . . . . . Zone Layout 5 | . . . . . 2 . . . . . . . . . 2 . . . . 1 EX-Prototype ID Bank 1 | . . . 1 . . . . . . . . . . . . . . . . . Fabricator Hacks 8 | . . . . . . . . . . 2 . . . . 5 . . . . 1 Network Status 1 | . . . . . . . . . . 1 . . . . . . . . . . Load Schematic 4 | . . . . . . . . . . . . . . . 3 . . . . 1 Build 3 | . . . . . . . . . . 1 . . . . 2 . . . . . Repair Station Hacks . | . . . . . . . . . . . . . . . . . . . . . Recycling Unit Hacks 4 | . . . . . . . . . . . . . . . 4 . . . . . Report Inventory 1 | . . . . . . . . . . . . . . . 1 . . . . . Retrieve Matter 2 | . . . . . . . . . . . . . . . 2 . . . . . Retrieve Components 1 | . . . . . . . . . . . . . . . 1 . . . . . Scanalyzer 11 | . . . . . 2 . . . . 9 . . . . . . . . . . Insert Component 5 | . . . . . 2 . . . . 3 . . . . . . . . . . Analyze 6 | . . . . . . . . . . 6 . . . . . . . . . . Garrison Access Hacks 2 | . . . . . 1 . . . . . . . . . . . . . . 1 Seal Access 2 | . . . . . 1 . . . . . . . . . . . . . . 1 Unauthorized Hacks 14 | . . . . . 1 . . . . 3 1 . . . 7 . . . . 2 Terminals 7 | . . . . . . . . . . 1 1 . . . 3 . . . . 2 Track 1 | . . . . . . . . . . . . . . . . . . . . 1 Botnet 5 | . . . . . . . . . . 1 1 . . . 2 . . . . 1 Operators 1 | . . . . . . . . . . . . . . . 1 . . . . . Fabricators 2 | . . . . . . . . . . 1 . . . . 1 . . . . . Prioritize 2 | . . . . . . . . . . 1 . . . . 1 . . . . . Repair Stations . | . . . . . . . . . . . . . . . . . . . . . Recycling Units 5 | . . . . . 1 . . . . 1 . . . . 3 . . . . . Reject 3 | . . . . . . . . . . 1 . . . . 2 . . . . . Recyclers 1 | . . . . . . . . . . . . . . . 1 . . . . . Tunnel 1 | . . . . . 1 . . . . . . . . . . . . . . . Scanalyzers . | . . . . . . . . . . . . . . . . . . . . . Garrison Access . | . . . . . . . . . . . . . . . . . . . . . Data Cores Recovered 2 | . . . . . . . . . . 1 . . . . 1 . . . . . Used . | . . . . . . . . . . . . . . . . . . . . . Hacking Detections 40 | . . . . . 7 1 . 1 . 6 6 1 . 3 8 . . . . 7 Full Trace Events 5 | . . . . . . . . . . . . . . . 3 . . . . 2 Feedback Events . | . . . . . . . . . . . . . . . . . . . . . Feedback Blocked . | . . . . . . . . . . . . . . . . . . . . . Robot Schematics Acquired . | . . . . . . . . . . . . . . . . . . . . . Robots Built . | . . . . . . . . . . . . . . . . . . . . . Authchips . | . . . . . . . . . . . . . . . . . . . . . Time . | . . . . . . . . . . . . . . . . . . . . . Total Robot Build Rating . | . . . . . . . . . . . . . . . . . . . . . Part Schematics Acquired 7 | . . . . . . . . . . 3 . . . . . . . 4 . . Parts Built 2 | . . . . . . . . . . 1 . . . . 1 . . . . . Authchips . | . . . . . . . . . . . . . . . . . . . . . Time 344 | . . . . . . . . . . 152 . . . . 192 . . . . . Total Part Build Rating 13 | . . . . . . . . . . 5 . . . . 8 . . . . . Parts Repaired . | . . . . . . . . . . . . . . . . . . . . . Time . | . . . . . . . . . . . . . . . . . . . . . Parts Recycled . | . . . . . . . . . . . . . . . . . . . . . Recycled Matter . | . . . . . . . . . . . . . . . . . . . . . Retrieved Matter . | . . . . . . . . . . . . . . . . . . . . . Retrieved Components 3 | . . . . . . . . . . . . . . . 3 . . . . . Parts Scanalyzed 3 | . . . . . . . . . . 3 . . . . . . . . . . Part Schematics Acquired 3 | . . . . . . . . . . 3 . . . . . . . . . . Parts Damaged . | . . . . . . . . . . . . . . . . . . . . . Bothacking | -11 -10 -10 -10 -9 -8 -7 -7 -6 -6 -6 -6 -6 -6 -6 -5 -5 -5 -5 -4 -4 ------------ Run | Scr Mat Min Exi Min Mat Fac DSF Fac Was Fac Ext Cet Arc Hub Fac Upp Upp Zhi Pro Fac Used RIF Installer . | . . . . . . . . . . . . . . . . . . . . . Robots Hacked . | . . . . . . . . . . . . . . . . . . . . . Non-combat . | . . . . . . . . . . . . . . . . . . . . . Combat . | . . . . . . . . . . . . . . . . . . . . . Robot Hacks Applied . | . . . . . . . . . . . . . . . . . . . . . Relay Couplers Released 5 | . . . . . . . . . . 4 . . . 1 . . . . . . Machine Destruction 1 | . . . . . . . . . . . . . . 1 . . . . . . Programmers 4 | . . . . . . . . . . 4 . . . . . . . . . . Fabnet Peak Effective % . | . . . . . . . . . . . . . . . . . . . . . Robots Rewired 11 | . . . . . . . . . . . 9 . . . . . 2 . . . Allies Hacked 1 | . . . . . . . . . . 1 . . . . . . . . . . Hacks Repelled . | . . . . . . . . . . . . . . . . . . . . . Allies | -11 -10 -10 -10 -9 -8 -7 -7 -6 -6 -6 -6 -6 -6 -6 -5 -5 -5 -5 -4 -4 -------- Run | Scr Mat Min Exi Min Mat Fac DSF Fac Was Fac Ext Cet Arc Hub Fac Upp Upp Zhi Pro Fac Total Allies 39 | . . . . 3 1 . . . 20 . 13 . . . . . 2 . . . Largest Group 20 | . . . . 2 1 . . . 20 17 11 6 . . . . 2 2 2 . Highest-Rated Group 785 | . . . . 45 31 . . . 785 635 324 195 . . . . 78 78 78 . Highest-Rated Ally 50 | . . . . 31 31 . . . 50 46 39 39 . . . . 49 49 49 . Total Orders 2 | . . . . . 2 . . . . . . . . . . . . . . . ROAM 1 | . . . . . 1 . . . . . . . . . . . . . . . RETURN 1 | . . . . . 1 . . . . . . . . . . . . . . . Ally Attacks 287 | . . . . 6 41 . 1 . . 101 88 36 . . . . 5 . 9 . Total Damage 5059 | . . . . 84 399 . 2 . . 2211 1489 666 . . . . 89 . 119 . Kills 50 | . . . . . 7 . . . . 22 18 2 . . . . 1 . . . Allies Corrupted 3 | . . . . . . . . . . 3 . . . . . . . . . . Allies Melted . | . . . . . . . . . . . . . . . . . . . . . Intel | -11 -10 -10 -10 -9 -8 -7 -7 -6 -6 -6 -6 -6 -6 -6 -5 -5 -5 -5 -4 -4 ------- Run | Scr Mat Min Exi Min Mat Fac DSF Fac Was Fac Ext Cet Arc Hub Fac Upp Upp Zhi Pro Fac Robot Analysis Total 6 | . . . . . 1 . . . . . . . . 1 . . . 4 . . Derelict Logs Recovered 8 | . . 2 . 2 . . . . . . . . . . . 1 1 . 2 . Drone Launches 24 | . . . . . 20 . 2 . . . . . . . . . . . . 2 Drone Recoveries 16 | . . . . . 16 . . . . . . . . . . . . . . . Exploration | -11 -10 -10 -10 -9 -8 -7 -7 -6 -6 -6 -6 -6 -6 -6 -5 -5 -5 -5 -4 -4 ------------- Run | Scr Mat Min Exi Min Mat Fac DSF Fac Was Fac Ext Cet Arc Hub Fac Upp Upp Zhi Pro Fac Turns Passed 16493 | . 481 192 465 408 3095 192 568 303 627 1298 1444 405 179 471 1830 776 631 306 529 2293 Spaces Moved 7897 | 1 206 123 324 295 1285 117 229 149 333 722 761 153 66 169 943 437 294 171 316 803 Core . | . . . . . . . . . . . . . . . . . . . . . Treads 6367 | . . . 2 . 740 117 229 149 333 722 761 153 66 169 943 437 294 171 316 765 Legs 259 | 1 206 14 . . . . . . . . . . . . . . . . . 38 Wheels 1271 | . . 109 322 295 545 . . . . . . . . . . . . . . . Hover . | . . . . . . . . . . . . . . . . . . . . . Flight . | . . . . . . . . . . . . . . . . . . . . . Fastest Speed 105 | 120 120 105 105 120 105 160 160 167 167 167 167 160 160 160 160 160 160 160 160 145 Average Speed 164 | 120 186 114 106 120 196 160 174 169 168 167 167 162 160 160 160 160 160 160 160 164 Slowest Speed 470 | 120 190 190 160 120 240 160 250 170 247 167 167 167 160 160 160 160 160 160 160 470 Overloaded Moves . | . . . . . . . . . . . . . . . . . . . . . Propulsion Burnouts . | . . . . . . . . . . . . . . . . . . . . . Robots Hopped . | . . . . . . . . . . . . . . . . . . . . . Cave-ins Triggered . | . . . . . . . . . . . . . . . . . . . . . Exploration Rate (%) 49 | 2 37 21 61 73 82 3 89 5 91 26 89 62 84 22 30 56 57 61 63 32 Regions Visited 20 Branch Regions 11 Pre-discovered Areas 8 | . . 1 1 2 1 . . . . . . . . . . . . 3 . . Known Exits Taken 7 | . . . . . . 1 . . . 1 . . . . 1 1 1 1 1 . Unknown Exits Taken 10 | 1 1 1 1 1 1 . . . . . 1 1 1 1 . . . . . . Scrap Searched 11 | . . 1 . 1 . . . . . . . . . . . 4 3 . 2 . Spaces Dug 67 | . . . . . . . 18 2 . 4 . . . 1 2 2 . . 17 21 Terrain Destroyed 1065 | . . . 8 . 16 . 25 3 1 4 27 89 7 239 190 41 35 . 61 319 Melee 27 | . . . . . . . 9 2 . 4 . . . 1 2 2 . . . 7 Projectile 274 | . . . . . 16 . 16 . 1 . 9 5 7 21 56 16 8 . . 119 AOE 761 | . . . 8 . . . . . . . 18 84 . 217 132 23 27 . 61 191 Terrain Rammed . | . . . . . . . . . . . . . . . . . . . . . Walls Destroyed . | . . . . . . . . . . . . . . . . . . . . . Machines Disabled . | . . . . . . . . . . . . . . . . . . . . . Actions | -11 -10 -10 -10 -9 -8 -7 -7 -6 -6 -6 -6 -6 -6 -6 -5 -5 -5 -5 -4 -4 --------- Run | Scr Mat Min Exi Min Mat Fac DSF Fac Was Fac Ext Cet Arc Hub Fac Upp Upp Zhi Pro Fac Total 9823 | . 262 146 391 323 1596 122 330 172 370 790 884 233 104 265 1129 472 405 202 333 1294 Wait 344 | . 17 . 17 6 77 . . . . 16 2 8 3 14 21 2 73 . 11 77 Move 7878 | . 205 122 323 294 1284 116 228 149 332 721 760 152 65 168 942 436 293 170 315 803 Hop . | . . . . . . . . . . . . . . . . . . . . . Pick Up 187 | . 12 2 5 3 37 3 13 2 2 9 6 3 5 11 29 1 1 4 . 39 Fast Attach 91 | . 2 . 1 1 11 . 2 1 9 2 2 9 1 3 8 1 1 9 . 28 Attach 113 | . 2 3 5 3 14 2 3 2 1 2 1 2 3 11 9 1 3 3 . 43 Detach 14 | . . . . 2 . . . . 1 . . . . . 1 . . 3 . 7 Swap 188 | . . . 6 1 11 . 16 3 . 10 8 9 4 11 31 12 3 1 3 59 Drop 191 | . 3 4 4 . 34 1 22 2 10 13 8 13 6 2 29 3 . 10 . 27 Fire 661 | . 21 15 30 13 120 . 33 11 15 6 19 37 17 43 55 14 21 . 4 187 Melee 51 | . . . . . . . 11 2 . 8 5 . . 2 2 2 . 2 . 17 Ram . | . . . . . . . . . . . . . . . . . . . . . Kick . | . . . . . . . . . . . . . . . . . . . . . Crush 23 | . . . . . 8 . . . . 2 4 . . . 2 . . . . 7 Escape Stasis 2 | . . . . . . . 2 . . . . . . . . . . . . . Rewire 80 | . . . . . . . . . . 1 69 . . . . . 10 . . . Trap . | . . . . . . . . . . . . . . . . . . . . . Miscellaneous . | . . . . . . . . . . . . . . . . . . . . . Route ------- -11/Scrapyard -10/Materials -10/Mines (discovered 3 exits: [*Mat x2] / *Exi) -10/Exiles -9/Mines -8/Materials (discovered 2 exits: *Fac x2) -7/Factory -7/DSF -6/Factory -6/Waste -6/Factory (discovered 4 exits: *Low x2 / *Ext x2) -6/Extension (discovered 3 exits: *Fac x2 / *Cet) -6/Cetus (discovered 2 exits: *Fac / [*Arc]) -6/Archives (discovered 2 exits: *Hub x2) -6/Hub_04(d) (discovered 2 exits: *Fac x2) -5/Factory (discovered 3 exits: *Fac / *Upp x2) -5/Upper Caves -5/Upper Caves -5/Zhirov -4/Proximity Caves -4/Factory (discovered 3 exits: *Res x3) History --------- Turn | Location | Event 1 | -11/Scrapyard | Discovered new exit (range 0) 1 | -11/Scrapyard | Entered Materials 327 | -10/Materials | Build established: Mutant 449 | -10/Materials | Discovered new exit (range 16) 482 | -10/Materials | Entered Mines 562 | -10/Mines | Deemed a non-threat by the Exiles lab entrance 562 | -10/Mines | Discovered new exit (range 5) 587 | -10/Mines | Discovered new exit (range 8) 587 | -10/Mines | Discovered new exit (range 8) 589 | -10/Mines | Learned Materials terminal intel 594 | -10/Mines | Learned location of Zion (-7) 674 | -10/Mines | Entered Exiles 701 | -10/Exiles | Met 8R-AWN 747 | -10/Exiles | Met EX-HEX 776 | -10/Exiles | Met EX-BIN 789 | -10/Exiles | Aligned with FarCom system 790 | -10/Exiles | Given EX-Vault access code 815 | -10/Exiles | Opened EX-Vault 843 | -10/Exiles | Warned to stay clear of 0b10 Research branches 880 | -10/Exiles | Met EX-DEC 956 | -10/Exiles | Attacked by the Exiles 1108 | -10/Exiles | Core integrity fell below 50% 1125 | -10/Exiles | Lost 4 parts (1p1n2w) 1129 | -10/Exiles | Discovered new exit (range 10) 1139 | -10/Exiles | Entered Mines 1341 | -9/Mines | Found the Drone Emporium 1347 | -9/Mines | Found Prototype Device 1347 | -9/Mines | Identified Splice Drone Bay 1508 | -9/Mines | Received a Mining Laser from a helpful Derelict 1531 | -9/Mines | Discovered new exit (range 9) 1547 | -9/Mines | Entered Materials 1547 | -8/Materials | Accompanied by 1 ally 1547 | -8/Materials | Evolved 4 slots: Propulsion x1, Utility x2, Weapon x1 1548 | -8/Materials | Loaded intel: 12 terminal locations 2072 | -8/Materials | Garrison activated, responded to threat 2209 | -8/Materials | Discovered new exit (range 3) 2361 | -8/Materials | Build established: Scavenger-Mutant 2451 | -8/Materials | Discovered new exit (range 16) 3074 | -8/Materials | Build established: Scavenger-Tank 3333 | -8/Materials | Garrison activated, responded to threat 4642 | -8/Materials | Entered Factory 4642 | -7/Factory | Evolved 2 slots: Propulsion x1, Weapon x1 4834 | -7/Factory | Identified exit to DSF 4834 | -7/Factory | Entered DSF 4892 | -7/DSF | Additional patrols routed to DSF 4958 | -7/DSF | Discovered new exit (range 15) 5221 | -7/DSF | Sterilization system engaged 5241 | -7/DSF | Ambient heat levels rising (+10) 5256 | -7/DSF | Ambient heat levels rising (+10) 5271 | -7/DSF | Ambient heat levels rising (+10) 5286 | -7/DSF | Ambient heat levels rising (+10) 5301 | -7/DSF | Ambient heat levels rising (+10) 5316 | -7/DSF | Ambient heat levels rising (+10) 5331 | -7/DSF | Ambient heat levels rising (+10) 5346 | -7/DSF | Ambient heat levels rising (+10) 5361 | -7/DSF | Ambient heat levels rising (+10) 5376 | -7/DSF | Ambient heat levels rising (+10) 5391 | -7/DSF | Ambient heat levels rising (+10) 5402 | -7/DSF | Entered Factory 5402 | -6/Factory | Evolved 2 slots: Utility x2 5558 | -6/Factory | Build established: Mutant 5705 | -6/Factory | Sucked down chute 5705 | -6/Factory | Entered Waste 5706 | -6/Waste | Joined by Warlord forces that had cleared the area 5786 | -6/Waste | Found Adv. Powered Armor 5871 | -6/Waste | Discovered new exit (range 16) 6031 | -6/Waste | Build established: Tank 6298 | -6/Waste | Found Damper Plating 6332 | -6/Waste | Entered Factory 6332 | -6/Factory | Accompanied by 17 allies 6724 | -6/Factory | Identified exit to Lower Caves 6724 | -6/Factory | Identified exit to Extension 7171 | -6/Factory | Fabricated Imp. Heavy Machine Gun? 7630 | -6/Factory | Entered Extension 7630 | -6/Extension | Accompanied by 1 ally 7708 | -6/Extension | Rescued a captive Derelict 7709 | -6/Extension | Rescued a captive Derelict 7839 | -6/Extension | Rescued a captive Derelict 7840 | -6/Extension | Rescued a captive Derelict 7962 | -6/Extension | Energy Cycler disabled 7962 | -6/Extension | Rescued a captive Derelict 7962 | -6/Extension | Rescued a captive Derelict 7962 | -6/Extension | Rescued a captive Derelict 7965 | -6/Extension | Rescued a captive Derelict 8565 | -6/Extension | Discovered new exit (range 15) 8599 | -6/Extension | Extracted ID and sensor layout for unrecognized location from A7's data core 8669 | -6/Extension | Build established: Commander-Tank 8780 | -6/Extension | Disrupted transfer network 9014 | -6/Extension | Discovered new exit (range 10) 9016 | -6/Extension | Discovered new exit (range 6) 9074 | -6/Extension | Disrupted transfer network 9074 | -6/Extension | Entered Cetus 9074 | -6/Cetus | Accompanied by 6 allies 9090 | -6/Cetus | Spotted Cetus Guard 9092 | -6/Cetus | Spotted Cetus Guard 9096 | -6/Cetus | Spotted Cetus Guard 9096 | -6/Cetus | Spotted Cetus Guard 9112 | -6/Cetus | Destroyed Cetus Guard 9118 | -6/Cetus | Allies destroyed Cetus Guard 9128 | -6/Cetus | Allies destroyed Cetus Guard 9135 | -6/Cetus | Destroyed Cetus Guard 9247 | -6/Cetus | Discovered new exit (range 21) 9314 | -6/Cetus | Destroyed 7 combat bots 9316 | -6/Cetus | Spotted Cetus Guard 9319 | -6/Cetus | Spotted Cetus Guard 9319 | -6/Cetus | Spotted Cetus Guard 9319 | -6/Cetus | Spotted Cetus Guard 9328 | -6/Cetus | Destroyed Cetus Guard 9340 | -6/Cetus | Destroyed Cetus Guard 9357 | -6/Cetus | Destroyed Cetus Guard 9372 | -6/Cetus | Destroyed Cetus Guard 9382 | -6/Cetus | Discovered new exit (range 21) 9409 | -6/Cetus | Met Revision 17 9460 | -6/Cetus | Build established: Scavenger-Tank 9479 | -6/Cetus | Entered Archives 9549 | -6/Archives | Discovered new exit (range 22) 9571 | -6/Archives | Discovered new exit (range 22) 9658 | -6/Archives | Entered Hub_04(d) 9726 | -6/Hub_04(d) | System corruption reached 10% 9769 | -6/Hub_04(d) | Discovered new exit (range 13) 9848 | -6/Hub_04(d) | Core integrity fell below 50% 10029 | -6/Hub_04(d) | Lost 3 parts (1n1u1w) 10094 | -6/Hub_04(d) | Discovered new exit (range 9) 10114 | -6/Hub_04(d) | Network Hub disabled 10128 | -6/Hub_04(d) | Spotted Lightning 10129 | -6/Hub_04(d) | Entered Factory 10129 | -5/Factory | Evolved 2 slots: Propulsion x2 10461 | -5/Factory | Build established: Scavenger-Skirmisher 10703 | -5/Factory | Destroyed 10 combat bots 11019 | -5/Factory | Discovered new exit (range 22) 11055 | -5/Factory | Identified exit to Factory 11135 | -5/Factory | Identified exit to Upper Caves 11689 | -5/Factory | Fabricated Adv. Powered Armor? 11929 | -5/Factory | First assault squad dispatched 11959 | -5/Factory | Entered Upper Caves 12166 | -5/Upper Caves | Ambushed by wild Derelicts 12502 | -5/Upper Caves | Discovered new exit (range 9) 12514 | -5/Upper Caves | Identified exit to Upper Caves 12589 | -5/Upper Caves | Learned Factory stockpile data 12735 | -5/Upper Caves | Entered another Upper Caves area 12749 | -5/Upper Caves | Encountered a Warlord checkpoint 12752 | -5/Upper Caves | Attracted the attention of an 0b10 checkpoint 12918 | -5/Upper Caves | Learned location of 1 exit from Factory 13220 | -5/Upper Caves | Attracted the attention of an 0b10 outpost 13260 | -5/Upper Caves | Discovered new exit (range 15) 13273 | -5/Upper Caves | Destroyed 7 combat bots 13310 | -5/Upper Caves | Identified exit to Zhirov 13366 | -5/Upper Caves | Entered Zhirov 13366 | -5/Zhirov | Accompanied by 2 allies 13366 | -5/Zhirov | Discovered new exit (range 3) 13397 | -5/Zhirov | Met Zhirov 13426 | -5/Zhirov | Learned location of Quarantine (-3) 13426 | -5/Zhirov | Learned location of Testing (-2) 13426 | -5/Zhirov | Learned location of Command (-1) 13440 | -5/Zhirov | Zhirov requested help retrieving the SGEMP Prototype 13465 | -5/Zhirov | Found Alien Artifact 13465 | -5/Zhirov | Identified Integrated Reactor 13465 | -5/Zhirov | Installed Integrated Reactor, increased core energy generation (+10) 13484 | -5/Zhirov | Found Alien Artifact 13671 | -5/Zhirov | Identified exit to Proximity Caves 13672 | -5/Zhirov | Entered Proximity Caves 13672 | -4/Proximity Caves | Accompanied by 2 allies 13836 | -4/Proximity Caves | Learned Research trap positions 14201 | -4/Proximity Caves | Entered Factory 14201 | -4/Factory | Evolved 2 slots: Utility x2 14202 | -4/Factory | Identified exit to Research 14486 | -4/Factory | Discovered exit to Research (range 22) 14555 | -4/Factory | Garrison activated, responded to threat 14701 | -4/Factory | First assault squad dispatched 14937 | -4/Factory | System corruption reached 10% 14972 | -4/Factory | Lost 3 parts (2n1w) 14981 | -4/Factory | Destroyed 12 combat bots 15349 | -4/Factory | Destroyed 11 combat bots 15797 | -4/Factory | Discovered exit to Research (range 6) 15835 | -4/Factory | Found Prototype Device 15976 | -4/Factory | Lost 3 parts (1u2w) 16163 | -4/Factory | Core integrity fell below 50% 16336 | -4/Factory | Destroyed 14 combat bots 16377 | -4/Factory | Core integrity fell below 20% 16404 | -4/Factory | Lost 19 parts (2p9n3u5w) 16479 | -4/Factory | Spotted B-86 Titan 16494 | -4/Factory | Destroyed by B-86 Titan with Hardcell Cannon Last Messages --------------- 16478_ Destroyed Lgt. Antimatter Reactor. 16478_ G-67 Veteran destroyed. 16478_ Fusion Modulator explodes. 16478_ W-44 Eye distress signal jammed. 16478_ W-44 Eye sends out distress signal. 16478_ W-44 Eye distress signal jammed. 16479_ Flexi-carbon Leg destroyed. 16479_ Penetrated by Slug. 16479_ W-44 Eye distress signal jammed. 16482_ Slug penetrates Wall. 16484_ W-44 Eye distress signal jammed. 16484_ Acquired 9 matter. 16485_ W-44 Eye distress signal jammed. 16485_ U-05 Engineer lays Concrete. 16486_ W-44 Eye distress signal jammed. 16487_ System corrupted: Substantial component data lost. 16487_ W-44 Eye distress signal jammed. 16491_ Adv. Medium Treads destroyed. 16491_ W-44 Eye distress signal jammed. 16491_ U-05 Engineer lays Concrete. Map ----- +----------------------------------------------------+ | ????????????????????????????? ?????????????????? | | ??????????????????????????### ????"????????????? | | ?????????????????????????? ??? "????????????? | | ??????????????????????????? ! ??? "????????????? | | ??????????????????????????? ??" ????????????? | | ??????????????????????????? ??" ????????????? | | ??????????????????????????? BB?? ?????????????? | | ??????????????????????????? B ? ?????????????? | | ??????????????????????????? #? ??????????????? | | ??????????????????????????? ## ??????????????? | | ???????????????????#########; "#"##?#???????????? | | ???????????????????# ;;;;"""""# #???????????? | | ???????????????????# """ ;] # ###??##?????? | | ???????????????????+ """ ; " ??? ?????? | | ???????????????????# """ ; " #??? ?????? | | ???????????????????# " #??? ! ?????? | | ???????????????????# """ =% " #??? ?????? | | ???????????????????# """ = #???! ??????? | | ???????????????????# """ ! " #???! ??????? | | ???????????????????# " #???] ??????? | | ???????????????????????#;; =!= " #??? ??????? | | ???????????????????#####;;;""%""""# ###? ??????? | | ???????????????????# ;"["" " ##+###????? | | ???????????????????# T # """ % ##???? | | ???????????????? + + "#???? | | ???????????????# # @# ### %####?? | | ???????????????# ??# ## ##?? ##+#+###### | | ???????????????????# % ## ##### # * "# | | ???????????????????######### ### ### * "# | | ???????????????????????????# / " | | ????????????????????########+## ## " | | ????????????????????# [ # ## | | ????????????????????# # | | ???????????????# + [ ####### | | ???????????????# ## # | | ????????????????????###### # # # | | ???????????????????####### # [ #? | | ???????????????????# ! [ ##? | | ???????????????????+ ^ ####?? | | ???????????????????# """ #????? | | ???????????????????# """ ### ! """#????? | | ???????????????????# """ #?# T"#????? | | ???????????????????# ### # """#????? | | ??????????????###########+##### #????? | | ??????????????# """ ! !=+* #????? | | ??????????????# "Y" "" #= #### #????? | | ??????????????# " " "%" # ! ##########+##???? | | ??????????????# ""=!+ %= + ????? | | ??????????????# " !#*! # ????? | | ??????????????# ""*#*! # """"""""" #??? | +----------------------------------------------------+ Best States ------------- Heat Dissipation 64 Coolant Potential 100 Energy Generation 35 Energy Capacity 350 Matter Stores 300 Matter Capacity 300 Sight Range 22 Robot Scan Range 16 Terrain Scan Density 10 Jamming Range 12 Armor Coverage 1600 Resistance: TH 10 Resistance: EM 90 Weapon Shielding 90 Weapon Cycling 20 Evasion (%) 50 Targeting Accuracy 8 Core Analysis 6 Recoil Reduction 6 Kinecelleration 40 Offensive Hacking 14 Defensive Hacking 10 Item Schematics ----------------- Railgun | -6/Factory | Scanalyzed Adv. Powered Armor | -6/Factory | Scanalyzed Huge Storage Unit | -6/Factory | Scanalyzed Assault Drone Bay | -5/Zhirov | Free Exp. Heat Sink | -5/Zhirov | Free Exp. Optical Array | -5/Zhirov | Free Imp. Arc Thrower | -5/Zhirov | Free Robot Schematics ------------------ None Fabricated ------------ Imp. Heavy Machine Gun | x1 | -6/Factory | Preloaded Adv. Powered Armor | x1 | -5/Factory Alien Tech Used ----------------- Integrated Reactor Achievements -------------- Gunslinger Challenges ------------ None Game ------ Seed MassTitaniumTreads Manual? 0 Play Time 02:46:18 Cumulative 308.7 hours Start 2022.05.18 @ 18:16:26 End 2022.05.18 @ 22:27:10 Sessions 3 Manual Loads 0 Difficulty Rogue Special Mode None Game No. 88 Rogue 71 Adventurer 17 Explorer 0 Win Type - Total 18 Types 8/1/7/1/0/0/1/0/0 Lore% 80 Gallery% 84 Achievement% 73 Wizard Run 0 Options --------- ASCII 0 Keyboard 0 Movement Arrows Keybinds 0 Fullscreen 1 Font 28/Dina Map View 72x54 Tactical HUD 1 Map Filters NONE Filters NONE Steam 1 RUN: 398e17f5-306b-4f17-b966-a15eb9950188